bitfinex/quotes_BTCUSD_20241222
["timestamp","ask_amount","ask_price","bid_price","bid_amount"]
[1734906405802,0.1013084,95014.0,95002.0,0.001]
[1734906406057,0.1013084,95014.0,95005.0,0.210514]
[1734906406946,0.1013084,95014.0,95003.0,0.210519]
[1734906407420,0.1013084,95014.0,95004.0,0.15]
[1734906407961,0.29016,95030.0,95004.0,0.15]
[1734906408157,0.1013084,95029.0,95004.0,0.15]
[1734906408381,0.1013084,95029.0,95011.0,0.210501]
[1734906408382,0.210464,95028.0,95011.0,0.210501]
[1734906408581,0.1013084,95027.0,95011.0,0.210501]
[1734906410032,0.1033084,95027.0,95011.0,0.210501]
[1734906410256,0.1013084,95027.0,95008.0,0.15]
[1734906411424,0.10262401,95026.0,95001.0,0.15]
[1734906411620,0.10262401,95026.0,95004.0,8.57e-05]
[1734906412273,0.10262401,95026.0,95010.0,0.210502]
[1734906412471,0.10262401,95026.0,95005.0,0.210513]
[1734906412472,0.10262401,95026.0,95006.0,0.15]
[1734906412679,0.10262401,95026.0,95007.0,0.21051]
[1734906412894,0.10262401,95026.0,95008.0,0.15]
[1734906413093,0.10262401,95026.0,95006.0,0.15]
[1734906413644,0.10262401,95026.0,95009.0,0.210506]
[1734906414748,0.10362401,95026.0,95009.0,0.210506]
[1734906415036,0.10362401,95026.0,95006.0,0.15]
[1734906415037,0.10262401,95026.0,95006.0,0.15]
[1734906415580,0.10362401,95026.0,95009.0,0.210506]
[1734906415770,0.10362401,95026.0,95008.0,0.210508]
[1734906416170,0.10262401,95026.0,95008.0,0.210508]
[1734906416456,0.10362401,95026.0,95009.0,0.210506]
[1734906418822,0.10262401,95026.0,95018.0,0.210486]
[1734906419409,0.10262401,95026.0,95014.0,0.210493]
[1734906419560,0.10362401,95026.0,95014.0,0.210493]
[1734906419764,0.10362401,95026.0,95014.0,0.420988]
[1734906419958,0.10362401,95026.0,95008.0,0.02275935]
[1734906420170,0.10362401,95026.0,95018.0,0.001]
[1734906420599,0.10262401,95026.0,95006.0,0.15]
[1734906420798,0.0453,95025.0,95006.0,0.15]
[1734906420972,0.1013084,95024.0,95006.0,0.15]
[1734906421395,0.10262408,95024.0,95006.0,0.15]
[1734906421936,0.10262408,95024.0,95014.0,0.001]
[1734906422124,0.10262408,95024.0,95005.0,0.210515]
[1734906422489,0.10262408,95024.0,95006.0,0.15]
[1734906423840,0.10262408,95024.0,95004.0,0.17310389]
[1734906424077,0.10262408,95024.0,95006.0,0.15]
[1734906425003,0.10262408,95024.0,95006.0,0.023]
[1734906425276,0.10262408,95024.0,95007.0,0.21051]
[1734906425525,0.10262408,95024.0,95004.0,0.02310389]
[1734906425526,0.1013084,95024.0,95011.0,0.2105]
[1734906425764,0.10262407,95024.0,95004.0,0.02310389]
[1734906425971,0.10262407,95024.0,95005.0,0.210515]
[1734906426182,0.10262407,95024.0,95004.0,8.57e-05]
[1734906426183,0.360495,95014.0,95004.0,8.57e-05]
[1734906426393,0.542515,95005.0,95004.0,8.57e-05]
[1734906426610,0.6916234,95005.0,95004.0,8.57e-05]
[1734906426805,0.8146234,95005.0,95004.0,8.57e-05]
[1734906427087,0.442526,95000.0,94999.0,0.00024704]
[1734906427281,0.442526,95000.0,94994.0,0.03552097]
[1734906427282,0.713337,94995.0,94994.0,0.03552097]
[1734906427486,0.2,94991.0,94990.0,0.14106221]
[1734906427640,0.60542459,94991.0,94990.0,0.14106221]
[1734906427854,0.6041084,94991.0,94990.0,0.14106221]
[1734906428311,0.6041084,94991.0,94986.0,0.18622911]
[1734906428312,0.373,94987.0,94986.0,0.18622911]
[1734906428535,0.563695,94969.0,94937.0,8.56e-05]
[1734906428755,0.210606,94964.0,94937.0,8.56e-05]
[1734906428967,0.3119144,94964.0,94937.0,8.56e-05]
[1734906429186,0.6849144,94964.0,94937.0,8.56e-05]
[1734906429631,1.21402259,94964.0,94937.0,8.56e-05]
[1734906429832,1.21402259,94964.0,94963.0,0.00024706]
[1734906430222,1.21402259,94964.0,94937.0,8.56e-05]
[1734906430223,0.310663,94938.0,94937.0,8.56e-05]
[1734906430427,0.4119714,94938.0,94937.0,8.56e-05]
[1734906430870,0.4349714,94938.0,94937.0,8.56e-05]
[1734906431076,0.6619714,94938.0,94937.0,8.56e-05]
[1734906431232,0.72429191,94938.0,94937.0,8.56e-05]
[1734906431439,0.72429191,94938.0,94895.0,0.0472]
[1734906431440,0.210699,94922.0,94897.0,0.02241919]
[1734906431656,0.1013084,94915.0,94895.0,0.00053934]
[1734906431860,0.00131729,94914.0,94895.0,0.0236799]
[1734906432058,0.1013084,94913.0,94895.0,0.00053934]
[1734906432280,0.00131731,94912.0,94895.0,0.00053934]
[1734906432533,0.1013084,94911.0,94895.0,0.00053934]
[1734906432735,0.00131731,94910.0,94895.0,0.00053934]
[1734906432875,0.1013084,94909.0,94895.0,0.00053934]
[1734906433076,0.00131731,94908.0,94895.0,0.00053934]
[1734906433278,0.1013084,94907.0,94895.0,0.00053934]
[1734906433519,0.09292991,94912.0,94897.0,0.15]
[1734906433692,0.09292991,94912.0,94909.0,0.15]
[1734906434094,0.1026254,94911.0,94909.0,0.15]
[1734906434416,0.1026254,94911.0,94898.0,0.536]
[1734906434615,0.1026254,94911.0,94895.0,0.02328869]
[1734906434616,0.12218093,94911.0,94895.0,0.02328869]
[1734906435137,0.1013084,94907.0,94895.0,0.02328869]
[1734906435370,0.1013084,94903.0,94895.0,0.02328869]
[1734906435549,0.1013084,94901.0,94895.0,0.02328869]
[1734906435847,0.10262583,94900.0,94895.0,0.02328869]
[1734906436408,0.1013084,94896.0,94895.0,0.02328869]
[1734906436614,0.10262585,94896.0,94895.0,0.00053934]
[1734906438272,0.1,94894.0,94886.0,0.12746767]
[1734906438473,0.1013084,94887.0,94886.0,0.12746767]
[1734906438698,0.1013084,94887.0,94870.0,0.12746767]
[1734906439032,0.1013084,94882.0,94863.0,0.0142861]
[1734906439236,0.1013084,94880.0,94870.0,0.12746767]
[1734906439409,0.1013084,94872.0,94870.0,0.12746767]
[1734906439645,0.00131774,94871.0,94863.0,0.0142861]
[1734906439824,0.1013084,94870.0,94863.0,0.0142861]
[1734906440074,0.0013178,94869.0,94863.0,0.0142861]
[1734906440266,0.1013084,94867.0,94863.0,0.02275243]
[1734906440470,0.09215956,94881.0,94857.0,0.12746767]
[1734906440471,0.10262625,94866.0,94857.0,0.12746767]
[1734906440622,0.1013084,94862.0,94857.0,0.12746767]
[1734906440827,0.00131788,94861.0,94857.0,0.12746767]
[1734906441031,0.1013084,94860.0,94857.0,0.12746767]
[1734906441230,0.00131791,94859.0,94857.0,0.12746767]
[1734906441425,0.1013084,94858.0,94857.0,0.12762934]
[1734906441627,0.1013084,94858.0,94857.0,0.00016167]
[1734906442306,0.1013084,94858.0,94848.0,0.12746767]
[1734906442480,0.00131796,94857.0,94848.0,0.12762944]
[1734906442691,0.09215956,94872.0,94849.0,0.023]
[1734906442829,0.10262636,94871.0,94862.0,0.12746767]
[1734906443029,0.10262636,94871.0,94860.0,0.25493534]
[1734906445090,0.10862636,94871.0,94860.0,0.12793534]
[1734906445345,0.10262636,94871.0,94860.0,0.12793534]
[1734906445711,0.10862636,94871.0,94860.0,0.12793534]
[1734906446489,0.10862636,94871.0,94860.0,0.33877134]
[1734906446905,0.1073084,94871.0,94860.0,0.12793534]
[1734906447228,0.1073084,94871.0,94868.0,0.023]
[1734906447229,0.006,94871.0,94868.0,0.023]
[1734906447480,0.006,94871.0,94868.0,0.233818]
[1734906447688,0.006,94871.0,94868.0,0.444636]
[1734906447888,0.01624936,94896.0,94868.0,0.233818]
[1734906448091,0.1013084,94894.0,94886.0,0.12746767]
[1734906448245,0.00131748,94893.0,94886.0,0.12746767]
[1734906448454,0.1013084,94892.0,94886.0,0.12746767]
[1734906448669,0.00131748,94891.0,94886.0,0.12746767]
[1734906448879,0.1013084,94890.0,94886.0,0.12746767]
[1734906449085,0.00131748,94889.0,94886.0,0.12746767]
[1734906449279,0.1013084,94888.0,94886.0,0.10746767]
[1734906450277,0.1013084,94888.0,94878.0,0.12746767]
[1734906450459,0.00131753,94887.0,94878.0,0.12746767]
[1734906450703,0.1013084,94886.0,94878.0,0.12746767]
[1734906450919,0.00131753,94885.0,94878.0,0.12746767]
[1734906451140,0.1013084,94884.0,94878.0,0.12746767]
[1734906451343,0.00131753,94883.0,94878.0,0.12746767]
[1734906451556,0.1013084,94882.0,94878.0,0.12746767]
[1734906451766,0.00131753,94881.0,94878.0,0.12746767]
[1734906451960,0.1013084,94880.0,94878.0,0.12746767]
[1734906452162,0.1013084,94880.0,94871.0,0.33827967]
[1734906452368,0.00131758,94879.0,94871.0,0.12746767]
[1734906452557,0.1013084,94878.0,94871.0,0.33827867]
[1734906452741,0.00131758,94877.0,94871.0,0.33827867]
[1734906452957,0.1013084,94876.0,94871.0,0.33827867]
[1734906453162,0.00131758,94875.0,94871.0,0.33827867]
[1734906453369,0.10262598,94875.0,94871.0,0.33827867]
[1734906453781,0.10262598,94875.0,94868.0,0.041191]
[1734906453959,0.10262598,94875.0,94868.0,0.191191]
[1734906454379,0.10262598,94875.0,94870.0,0.023]
[1734906454965,0.10262598,94875.0,94869.0,0.023]
[1734906455164,0.10262598,94875.0,94868.0,0.064191]
[1734906455518,0.10262598,94875.0,94867.0,0.21082]
[1734906455730,0.10262598,94875.0,94867.0,0.42164]
[1734906456237,0.10262598,94875.0,94869.0,0.001]
[1734906456540,0.10262598,94875.0,94867.0,0.21082]
[1734906456957,0.10862598,94875.0,94867.0,0.21082]
[1734906457167,0.10262598,94875.0,94867.0,0.21082]
[1734906457358,0.10262598,94875.0,94867.0,0.2290529]
[1734906457516,0.10262598,94875.0,94869.0,0.001]
[1734906459049,0.10262598,94875.0,94867.0,0.2290529]
[1734906459369,0.10262598,94875.0,94867.0,0.2301387]
[1734906459548,0.10262598,94875.0,94868.0,0.15]
[1734906459939,0.10262598,94875.0,94869.0,0.421633]
[1734906460141,0.0001716,94876.0,94874.0,0.210805]
[1734906460559,0.1013084,94875.0,94870.0,0.210814]
[1734906460787,0.00131759,94874.0,94870.0,0.210814]
[1734906461560,0.1013084,94875.0,94871.0,0.210811]
[1734906461972,0.00131758,94874.0,94871.0,0.210811]
[1734906462845,0.00131758,94874.0,94871.0,0.211811]
[1734906463084,0.00014106,94889.0,94875.0,0.233803]
[1734906463286,0.12643776,94930.0,94920.0,0.12746767]
[1734906463505,0.1013084,94925.0,94920.0,0.12746767]
[1734906463733,0.1013084,94925.0,94922.0,0.210698]
[1734906464355,0.00112213,94924.0,94919.0,0.210705]
[1734906465173,0.00112213,94924.0,94922.0,0.15]
[1734906465375,0.00112213,94924.0,94921.0,0.210701]
[1734906466371,0.00512213,94924.0,94919.0,0.210705]
[1734906466500,0.00512213,94924.0,94916.0,0.210712]
[1734906466698,0.00112213,94924.0,94920.0,0.210702]
[1734906466899,0.00612213,94924.0,94920.0,0.210702]
[1734906467302,0.00112213,94924.0,94921.0,0.2107]
[1734906468798,0.1013084,94925.0,94921.0,0.2107]
[1734906470050,0.1013084,94925.0,94921.0,0.2127]
[1734906470286,0.1013084,94925.0,94914.0,0.14416021]
[1734906470287,0.1013084,94925.0,94916.0,0.15]
[1734906470529,0.1013084,94925.0,94921.0,0.2117]
[1734906470760,0.1013084,94925.0,94921.0,0.4224]
[1734906471701,0.0001716,94924.0,94921.0,0.4224]
[1734906474707,0.0001716,94924.0,94921.0,0.4214]
[1734906476191,0.0001716,94924.0,94921.0,0.4234]
[1734906476391,0.0001716,94924.0,94921.0,0.4214]
[1734906477409,0.0001716,94924.0,94921.0,0.4234]
[1734906477613,0.0001716,94924.0,94922.0,0.15]
[1734906477824,0.0001716,94924.0,94923.0,0.360697]
[1734906479755,0.0001716,94924.0,94923.0,0.362697]
[1734906480231,0.0001716,94924.0,94923.0,0.002]
[1734906480421,0.0001716,94924.0,94923.0,0.210697]
[1734906481896,0.10148,94924.0,94914.0,0.01669254]
[1734906482114,0.10243053,94923.0,94914.0,0.01669254]
[1734906482315,0.1013084,94920.0,94891.0,0.09294808]
[1734906482521,0.00112213,94919.0,94891.0,0.09294808]
[1734906482656,0.1013084,94918.0,94895.0,0.210757]
[1734906482868,0.00112213,94917.0,94895.0,0.210757]
[1734906483070,0.1013084,94916.0,94898.0,0.21075]
[1734906483274,0.00112213,94915.0,94895.0,0.210757]
[1734906483483,0.1013084,94914.0,94895.0,0.210757]
[1734906483683,0.00112213,94913.0,94896.0,0.15]
[1734906483882,0.1013084,94912.0,94898.0,0.15]
[1734906484102,0.1013084,94912.0,94891.0,0.01671903]
[1734906484103,0.00112213,94911.0,94891.0,0.01671903]
[1734906484275,0.1013084,94910.0,94873.0,0.0469]
[1734906484457,0.00112213,94909.0,94891.0,0.210768]
[1734906484655,0.1013084,94908.0,94885.0,0.21078]
[1734906484899,0.00112213,94907.0,94890.0,0.12746767]
[1734906485103,0.1013084,94906.0,94890.0,0.00046767]
[1734906485308,0.00112213,94905.0,94890.0,0.01676185]
[1734906485480,0.1013084,94904.0,94890.0,0.01676185]
[1734906485697,0.00112213,94903.0,94890.0,0.15046767]
[1734906485884,0.1013084,94902.0,94890.0,0.15046767]
[1734906486082,0.00112213,94901.0,94890.0,0.15046767]
[1734906486287,0.1013084,94900.0,94890.0,0.15046767]
[1734906486508,0.00112213,94899.0,94892.0,0.15]
[1734906486851,0.1013084,94898.0,94892.0,0.15]
[1734906487124,0.00112213,94897.0,94892.0,0.15]
[1734906487349,0.1013084,94896.0,94892.0,0.15]
[1734906487460,0.1013084,94896.0,94890.0,0.00046767]
[1734906487461,0.00112213,94895.0,94890.0,0.21123667]
[1734906487667,0.10243053,94895.0,94891.0,0.15]
[1734906488298,0.10243053,94895.0,94893.0,0.15]
[1734906489350,0.10243053,94895.0,94891.0,0.15]
[1734906490280,0.10243053,94895.0,94890.0,0.36123567]
[1734906490463,0.10243053,94895.0,94890.0,0.42200467]
[1734906491071,0.10243053,94895.0,94890.0,0.21123567]
[1734906494456,0.10243053,94895.0,94890.0,0.210768]
[1734906495453,0.10243053,94895.0,94894.0,0.210761]
[1734906497510,0.0001716,94924.0,94895.0,0.2263]
[1734906497629,0.00033318,94924.0,94922.0,0.210699]
[1734906497847,0.00016158,94924.0,94923.0,0.15]
[1734906498052,0.09215956,94949.0,94944.0,0.210649]
[1734906498254,0.10243053,94948.0,94941.0,0.210656]
[1734906498489,0.1013084,94948.0,94947.0,0.210643]
[1734906498687,0.1013084,94948.0,94935.0,0.21067]
[1734906498888,0.1013084,94948.0,94944.0,0.210649]
[1734906499689,0.1103084,94948.0,94940.0,0.210657]
[1734906499908,0.1013084,94948.0,94940.0,0.210657]
[1734906500113,0.1013084,94948.0,94934.0,0.01681061]
[1734906500320,0.1103084,94948.0,94943.0,0.210651]
[1734906500608,0.1013084,94948.0,94943.0,0.210651]
[1734906502452,0.1103084,94948.0,94943.0,0.210651]
[1734906502656,0.1013084,94948.0,94943.0,0.210651]
[1734906503026,0.1103084,94948.0,94943.0,0.210651]
[1734906504977,0.1103084,94948.0,94943.0,0.421303]
[1734906505176,0.1103084,94948.0,94943.0,0.210652]
[1734906505387,0.1103084,94948.0,94943.0,0.421304]
[1734906505593,0.009,94948.0,94943.0,0.43778054]
[1734906506031,0.00112213,94965.0,94949.0,0.210638]
[1734906506242,0.1013084,94964.0,94949.0,0.210638]
[1734906506441,0.00112213,94963.0,94949.0,0.210638]
[1734906506778,0.00016158,94965.0,94950.0,0.12746767]
[1734906506779,0.1013084,94962.0,94950.0,0.12746767]
[1734906507137,0.1013084,94962.0,94959.0,0.210616]
[1734906508420,0.006,94964.0,94959.0,0.210616]
[1734906508574,0.1013084,94963.0,94950.0,0.12746767]
[1734906508777,0.00112213,94962.0,94960.0,0.210613]
[1734906508975,0.1013084,94963.0,94960.0,0.210613]
[1734906509628,0.006,94964.0,94960.0,0.42103188]
[1734906509629,0.005,94962.0,94960.0,0.42103188]
[1734906509829,0.00016158,94965.0,94960.0,0.42103188]
[1734906510363,0.00016158,94965.0,94960.0,0.210614]
[1734906510567,0.00016158,94965.0,94960.0,0.421228]
[1734906510690,0.00016158,94965.0,94962.0,0.21061]
[1734906510908,0.00016158,94965.0,94962.0,0.42122]
[1734906511330,0.00016158,94965.0,94964.0,0.719]
[1734906511529,0.0001716,94991.0,94979.0,0.1]
[1734906511733,0.0001712,95019.0,94979.0,0.1]
[1734906511734,0.0001712,95019.0,94996.0,0.083]
[1734906511950,0.0001712,95019.0,95017.0,0.210487]
[1734906511951,0.00070992,95019.0,95017.0,0.210487]
[1734906512804,0.00070992,95019.0,95018.0,0.00105233]
[1734906513002,0.00070992,95019.0,95018.0,0.03073458]
[1734906513220,0.00070992,95019.0,95018.0,0.05373458]
[1734906513599,0.00170992,95019.0,95018.0,0.05373458]
[1734906513811,0.00070992,95019.0,95018.0,0.20373458]
[1734906514028,0.00070992,95019.0,95018.0,0.20473458]
[1734906514449,0.00070992,95019.0,95018.0,0.22568026]
[1734906514684,0.00070992,95019.0,95018.0,0.22462793]
[1734906515124,0.00070992,95019.0,95018.0,0.09762793]
[1734906515310,0.00112213,95053.0,95018.0,0.09762793]
[1734906515311,0.000171,95057.0,95045.0,0.12746767]
[1734906515518,0.083,95088.0,95047.0,0.12746767]
[1734906515741,0.25319456,95115.0,95037.0,0.1]
[1734906515742,0.1013084,95087.0,95081.0,0.210346]
[1734906516114,0.1013084,95087.0,95082.0,0.420688]
[1734906516312,0.1013084,95087.0,95077.0,0.12746767]
[1734906516706,0.1013084,95087.0,95070.0,0.12746767]
[1734906516949,0.1013084,95086.0,95070.0,0.12746767]
[1734906518984,0.1014796,95086.0,95070.0,0.12846767]
[1734906519191,0.1014796,95086.0,95070.0,0.12746767]
[1734906519743,0.1104796,95086.0,95070.0,0.12846767]
[1734906520260,0.1104796,95086.0,95070.0,0.001]
[1734906522177,0.1013084,95071.0,95070.0,0.001]
[1734906522940,0.2013084,95071.0,95070.0,0.001]
[1734906523370,0.1,95070.0,95040.0,0.12746767]
[1734906523554,0.1013084,95067.0,95040.0,0.12746767]
[1734906525172,0.1013084,95067.0,95040.0,0.01926681]
[1734906525383,0.1013084,95067.0,95037.0,0.210443]
[1734906525602,0.1103084,95067.0,95040.0,0.12746767]
[1734906525833,0.1103084,95067.0,95041.0,0.210435]
[1734906526514,0.1013084,95067.0,95041.0,0.210435]
[1734906527059,0.1103084,95067.0,95041.0,0.210435]
[1734906527281,0.1013084,95067.0,95050.0,0.12746767]
[1734906527479,0.1013084,95067.0,95042.0,0.210433]
[1734906527680,0.1013084,95067.0,95050.0,0.210414]
[1734906528629,0.1103084,95067.0,95050.0,0.210414]
[1734906529003,0.1013084,95067.0,95050.0,0.210414]
[1734906529222,0.1083084,95067.0,95050.0,0.210414]
[1734906530196,0.1083084,95067.0,95050.0,0.01836721]
[1734906530447,0.1084794,95067.0,95047.0,0.21042]
[1734906530677,0.1084794,95067.0,95050.0,0.210414]
[1734906531416,0.1084794,95067.0,95050.0,0.420829]
[1734906536433,0.1084794,95067.0,95050.0,0.210415]
[1734906536839,0.1084794,95067.0,95050.0,0.42083]
[1734906537739,0.1084794,95067.0,95054.0,0.210406]
[1734906538701,0.1084794,95067.0,95050.0,0.210415]
[1734906538833,0.1014794,95067.0,95054.0,0.210406]
[1734906539280,0.1084794,95067.0,95054.0,0.210406]
[1734906540213,0.1084794,95067.0,95044.0,0.02155613]
[1734906540410,0.1014794,95067.0,95045.0,0.210426]
[1734906540817,0.1094794,95067.0,95046.0,0.210424]
[1734906540944,0.1094794,95067.0,95052.0,0.21041]
[1734906542011,0.1014794,95067.0,95052.0,0.21041]
[1734906542238,0.1074794,95067.0,95052.0,0.21041]
[1734906542744,0.1014794,95067.0,95052.0,0.21041]
[1734906542956,0.1074794,95067.0,95052.0,0.21041]
[1734906543273,0.1014794,95067.0,95052.0,0.21041]
[1734906543494,0.1074794,95067.0,95052.0,0.21041]
[1734906544348,0.1074794,95067.0,95052.0,0.22937544]
[1734906544749,0.1074794,95067.0,95052.0,0.01896544]
[1734906544957,0.1074794,95067.0,95053.0,0.210408]
[1734906545159,0.1014794,95067.0,95044.0,0.079]
[1734906545360,0.1014794,95067.0,95045.0,0.210426]
[1734906545584,0.1064794,95067.0,95045.0,0.210426]
[1734906545791,0.1014794,95067.0,95054.0,0.210405]
[1734906546194,0.1064794,95067.0,95054.0,0.210405]
[1734906546399,0.1014794,95067.0,95054.0,0.210405]
[1734906546824,0.1074794,95067.0,95054.0,0.210405]
[1734906546977,0.1014794,95067.0,95054.0,0.210405]
[1734906548459,0.1064794,95067.0,95054.0,0.210405]
[1734906549130,0.1064794,95067.0,95054.0,0.22908858]
[1734906549805,0.005171,95067.0,95055.0,0.15105204]
[1734906550038,0.005171,95067.0,95063.0,0.420772]
[1734906550253,0.005171,95067.0,95063.0,0.210386]
[1734906550468,0.005171,95067.0,95063.0,0.420772]
[1734906550909,0.005171,95067.0,95066.0,0.21038]
[1734906551117,0.005171,95067.0,95066.0,0.36038]
[1734906551558,0.000171,95067.0,95066.0,0.36038]
[1734906551859,0.005171,95067.0,95066.0,0.36038]
[1734906552090,0.1014794,95067.0,95061.0,0.02106371]
[1734906552284,0.1013084,95066.0,95061.0,0.02106371]
[1734906552622,0.1013084,95066.0,95055.0,0.210402]
[1734906553246,0.1013084,95066.0,95052.0,0.21041]
[1734906553455,0.1013084,95066.0,95056.0,0.210401]
[1734906554040,0.03,95065.0,95056.0,0.210401]
[1734906554245,0.03,95063.0,95056.0,0.210401]
[1734906554456,0.03,95061.0,95056.0,0.210401]
[1734906554676,0.03,95059.0,95056.0,0.210401]
[1734906554888,0.03,95057.0,95056.0,0.210401]
[1734906555159,0.1313084,95057.0,95056.0,0.083401]
[1734906555279,0.1313084,95057.0,95054.0,8.54e-05]
[1734906555633,0.03,95055.0,95054.0,8.54e-05]
[1734906555795,0.1313084,95055.0,95054.0,8.54e-05]
[1734906556413,0.1313084,95055.0,95054.0,0.01859107]
[1734906558684,0.1313084,95055.0,95054.0,8.54e-05]
[1734906558685,0.14443924,95055.0,95054.0,8.54e-05]
[1734906558806,0.2087084,95055.0,95054.0,8.54e-05]
[1734906559001,0.2540084,95055.0,95054.0,8.54e-05]
[1734906559456,0.6270084,95055.0,95054.0,8.54e-05]
[1734906559708,0.13,95042.0,95041.0,0.09294808]
[1734906559939,0.240435,95041.0,95040.0,0.0300855]
[1734906560134,0.6295794,95041.0,95022.0,0.13559807]
[1734906560335,0.03,95031.0,95022.0,0.13559807]
[1734906560562,0.03,95029.0,95022.0,0.13559807]
[1734906560731,0.03,95027.0,95022.0,0.13559807]
[1734906560942,0.03,95025.0,95022.0,0.13559807]
[1734906561108,0.03,95023.0,95022.0,0.13559807]
[1734906561312,0.1313084,95023.0,95013.0,0.01899141]
[1734906561596,0.03,95021.0,95001.0,0.210522]
[1734906561726,0.03,95019.0,95001.0,0.210522]
[1734906561920,0.03,95017.0,95004.0,0.15]
[1734906562128,0.03,95015.0,95004.0,0.15]
[1734906562330,0.00016148,95023.0,95004.0,0.15]
[1734906562331,0.03,95013.0,95004.0,0.15]
[1734906562560,0.03,95011.0,95004.0,0.15]
[1734906562781,0.03,95009.0,95004.0,0.15]
[1734906562979,0.03,95007.0,95004.0,0.15]
[1734906563121,0.03,95005.0,95004.0,0.15]
[1734906563320,0.1313084,95005.0,95004.0,0.15]
[1734906563955,0.1313084,95005.0,95001.0,0.01876555]
[1734906564152,0.1313084,95005.0,94999.0,0.15]
[1734906564153,0.03,95003.0,94999.0,0.15]
[1734906564356,0.1313084,95003.0,95000.0,0.210526]
[1734906564553,0.03,95001.0,94997.0,0.210532]
[1734906564757,0.03,94999.0,94997.0,0.01842487]
[1734906564959,0.1313084,94998.0,94992.0,0.210543]
[1734906565154,0.1313084,94998.0,94990.0,0.210547]
[1734906565411,0.1313084,94998.0,94986.0,0.210555]
[1734906565719,0.1313084,94998.0,94990.0,0.210547]
[1734906566242,0.1313084,94998.0,94986.0,0.210555]
[1734906566364,0.1313084,94998.0,94986.0,0.01859856]
[1734906566565,0.1313084,94998.0,94982.0,0.15]
[1734906567099,0.1313084,94998.0,94981.0,0.01900012]
[1734906567301,0.1313084,94998.0,94973.0,0.210585]
[1734906567505,0.1313084,94998.0,94977.0,0.210576]
[1734906568071,0.1393084,94998.0,94977.0,0.210576]
[1734906568466,0.210513,95006.0,94961.0,0.15]
[1734906568467,0.03,94992.0,94961.0,0.15]
[1734906568673,0.03,94990.0,94974.0,0.15]
[1734906568976,0.03,94988.0,94963.0,0.210606]
[1734906569177,0.210541,94994.0,94960.0,0.22899966]
[1734906569178,0.1313084,94983.0,94960.0,0.22899966]
[1734906569350,0.03,94976.0,94960.0,0.01838566]
[1734906569555,0.03,94974.0,94960.0,0.01838566]
[1734906569779,0.03,94972.0,94960.0,0.01892438]
[1734906570007,0.03,94970.0,94960.0,0.01892438]
[1734906570275,0.03,94968.0,94952.0,0.210631]
[1734906570500,0.03,94966.0,94955.0,0.01922393]
[1734906570739,0.03,94964.0,94955.0,0.00016158]
[1734906570976,0.03,94962.0,94955.0,0.00016158]
[1734906571207,0.03,94960.0,94949.0,0.18580058]
[1734906571428,0.03,94958.0,94949.0,0.18580058]
[1734906571629,0.03,94956.0,94949.0,0.18580058]
[1734906571826,0.03,94954.0,94949.0,0.18580058]
[1734906572062,0.00016146,94962.0,94951.0,0.03]
[1734906572262,0.0467,95009.0,94981.0,0.03]
[1734906572453,0.0467,95009.0,94980.0,0.12746767]
[1734906572454,0.1013084,95006.0,94995.0,0.03]
[1734906572660,0.1013084,95006.0,94997.0,0.03]
[1734906573054,0.03,95005.0,94997.0,0.03]
[1734906573240,0.03,95003.0,94997.0,0.03]
[1734906573442,0.03,95001.0,94997.0,0.03]
[1734906573672,0.03,94999.0,94998.0,0.03]
[1734906573820,0.1313084,94999.0,94998.0,0.03]
[1734906574622,0.1313084,94999.0,94994.0,0.03]
[1734906574944,0.03,94997.0,94994.0,0.03]
[1734906575160,0.03,94995.0,94994.0,0.03]
[1734906575362,0.1313084,94995.0,94994.0,0.03]
[1734906577387,0.1383084,94995.0,94994.0,0.03]
[1734906577701,0.1313084,94995.0,94994.0,0.03]
[1734906578114,0.1373084,94995.0,94994.0,0.03]
[1734906579183,0.1373084,94995.0,94994.0,0.0300854]
[1734906580189,0.1373084,94995.0,94932.0,0.09401898]
[1734906580377,0.03,94993.0,94985.0,0.210559]
[1734906580577,0.12204717,94992.0,94991.0,0.210546]
[1734906582166,0.12704717,94992.0,94991.0,0.210546]
[1734906584976,0.02573877,94992.0,94991.0,0.210546]
[1734906585162,0.02573877,94992.0,94991.0,0.083546]
[1734906585358,0.02573877,94992.0,94991.0,0.03]
[1734906585993,0.02573877,94992.0,94991.0,0.240546]
[1734906585994,0.005,94992.0,94991.0,0.240546]
[1734906586629,0.005,94992.0,94991.0,0.2614011]
[1734906590229,0.005,94992.0,94991.0,0.0208551]
[1734906590596,0.12704717,94992.0,94991.0,0.210546]
[1734906591572,0.12721817,94992.0,94991.0,0.210546]
[1734906596336,0.12721817,94992.0,94988.0,0.23179906]
[1734906596337,0.12721817,94992.0,94988.0,0.02124706]
[1734906596669,0.02073877,94990.0,94989.0,0.21055]
[1734906596930,0.12204717,94990.0,94989.0,0.21055]
[1734906598174,0.12604717,94990.0,94989.0,0.21055]
[1734906600284,0.12604717,94990.0,94985.0,0.02176924]
[1734906600562,0.02073877,94988.0,94986.0,0.210557]
[1734906600793,0.12204717,94987.0,94986.0,0.210557]
[1734906600960,0.12204717,94987.0,94955.0,8.55e-05]
[1734906601369,0.02073877,94983.0,94960.0,0.210613]
[1734906601568,0.02073877,94982.0,94955.0,8.55e-05]
[1734906601725,0.02073877,94980.0,94961.0,0.210611]
[1734906601931,0.02073877,94978.0,94961.0,0.210611]
[1734906602156,0.02073877,94976.0,94965.0,0.210602]
[1734906602359,0.210551,94989.0,94965.0,0.210602]
[1734906602360,0.02073877,94974.0,94965.0,0.210602]
[1734906602582,0.421102,94989.0,94965.0,0.210602]
[1734906602583,0.02073877,94972.0,94965.0,0.210602]
[1734906602784,0.02073877,94970.0,94965.0,0.210602]
[1734906602986,0.02073877,94968.0,94962.0,0.210609]
[1734906603327,0.02073877,94966.0,94958.0,0.210619]
[1734906603540,0.02073877,94964.0,94962.0,0.21061]
[1734906603740,0.12204717,94963.0,94962.0,0.21061]
[1734906603938,0.12204717,94963.0,94958.0,0.210619]
[1734906604340,0.12204717,94963.0,94956.0,0.210622]
[1734906604589,0.12204717,94963.0,94958.0,0.210619]
[1734906604906,0.12204717,94963.0,94957.0,0.15]
[1734906605155,0.12204717,94963.0,94958.0,0.210619]
[1734906605890,0.12204717,94963.0,94958.0,0.421238]
[1734906606031,0.12204717,94963.0,94959.0,0.210615]
[1734906606412,0.12504717,94963.0,94959.0,0.210615]